bitfinex/quotes_BTCUSD_20251010
["timestamp","ask_amount","ask_price","bid_price","bid_amount"]
[1760081519640,4.21475944,121440.0,121430.0,0.00262176]
[1760081519848,4.29595644,121440.0,121430.0,0.00262176]
[1760081520052,2.30218044,121440.0,121430.0,0.00262176]
[1760081520263,3.75392344,121440.0,121430.0,0.00262176]
[1760081520468,2.30218044,121440.0,121430.0,0.00262176]
[1760081520701,2.95053144,121440.0,121430.0,0.00262176]
[1760081520950,3.47339244,121440.0,121430.0,0.00262176]
[1760081521188,2.30218044,121440.0,121430.0,0.00262176]
[1760081521387,3.58198744,121440.0,121430.0,0.00262176]
[1760081521589,3.60638544,121440.0,121430.0,0.00262176]
[1760081521798,2.30218044,121440.0,121430.0,0.00262176]
[1760081521997,3.42588644,121440.0,121430.0,0.00262176]
[1760081522315,4.01615144,121440.0,121430.0,0.00262176]
[1760081522517,4.02597744,121440.0,121430.0,0.00262176]
[1760081522720,2.33619344,121440.0,121430.0,0.00262176]
[1760081522879,0.65339344,121440.0,121430.0,0.00262176]
[1760081523093,2.19707251,121440.0,121430.0,0.00262176]
[1760081523997,1.96367251,121440.0,121430.0,0.00262176]
[1760081524139,2.19707251,121440.0,121430.0,0.00262176]
[1760081524483,2.21905838,121440.0,121430.0,0.00262176]
[1760081524956,3.29412638,121440.0,121430.0,0.00262176]
[1760081525833,2.21905838,121440.0,121430.0,0.00262176]
[1760081525861,1.22971344,121440.0,121430.0,0.00262176]
[1760081526099,2.19703251,121440.0,121430.0,0.00262176]
[1760081526288,2.21901838,121440.0,121430.0,0.00262176]
[1760081526507,2.21904493,121440.0,121430.0,0.00262176]
[1760081526710,1.31545999,121440.0,121430.0,0.00262176]
[1760081526928,2.21904493,121440.0,121430.0,0.00262176]
[1760081527617,2.21909038,121440.0,121430.0,0.00262176]
[1760081530283,0.48877506,121440.0,121430.0,0.1673257]
[1760081530481,1.57781554,121440.0,121430.0,0.21817739]
[1760081530687,1.34449554,121440.0,121430.0,0.21817739]
[1760081530893,1.72051672,121440.0,121430.0,0.18226604]
[1760081531127,2.17230919,121440.0,121430.0,0.18226604]
[1760081531332,2.19429839,121440.0,121430.0,0.18226604]
[1760081531476,2.19429839,121440.0,121430.0,0.0175621]
[1760081531908,2.19433839,121440.0,121430.0,0.0175621]
[1760081532108,1.96097839,121440.0,121430.0,0.0175621]
[1760081532318,2.19433839,121440.0,121430.0,0.0170921]
[1760081532850,1.05739345,121440.0,121430.0,0.0170921]
[1760081533056,2.19433839,121440.0,121430.0,0.0170921]
[1760081534119,2.19433839,121440.0,121430.0,0.03527302]
[1760081534292,2.22369691,121440.0,121430.0,0.03527302]
[1760081534721,2.22365691,121440.0,121430.0,0.03527302]
[1760081534859,1.53229839,121440.0,121430.0,0.19997696]
[1760081535062,2.19429839,121440.0,121430.0,0.19997696]
[1760081535464,2.19429839,121440.0,121430.0,0.18179604]
[1760081535663,0.40246426,121440.0,121430.0,0.19730604]
[1760081535892,1.08267791,121440.0,121430.0,0.19730604]
[1760081536097,1.31599791,121440.0,121430.0,0.20943604]
[1760081536478,1.31599791,121440.0,121430.0,0.18179604]
[1760081537765,1.76779038,121440.0,121430.0,0.0170921]
[1760081537973,2.21958285,121440.0,121430.0,0.0170921]
[1760081538180,1.76791481,121440.0,121430.0,0.0170921]
[1760081538862,1.8312088,121440.0,121430.0,0.0170921]
[1760081540305,1.5978088,121440.0,121430.0,0.0170921]
[1760081540509,1.8311688,121440.0,121430.0,0.0170921]
[1760081540723,1.5978088,121440.0,121430.0,0.0170921]
[1760081540928,2.4174238,121440.0,121430.0,0.0170921]
[1760081541141,2.1840638,121440.0,121430.0,0.0170921]
[1760081541370,2.4174238,121440.0,121430.0,0.0170921]
[1760081541782,1.9890338,121440.0,121430.0,0.035273]
[1760081541988,1.9890338,121440.0,121430.0,0.0170921]
[1760081542192,1.5120888,121440.0,121430.0,0.0170921]
[1760081542406,1.9407688,121440.0,121430.0,0.0170921]
[1760081542638,2.1740888,121440.0,121430.0,0.0170921]
[1760081546316,2.15649744,121440.0,121430.0,0.0170921]
[1760081546523,2.1564996,121440.0,121430.0,0.0170921]
[1760081547003,1.4944996,121440.0,121430.0,0.03527304]
[1760081547162,2.1564996,121440.0,121430.0,0.0170921]
[1760081548759,3.02229018,121440.0,121430.0,0.0170921]
[1760081551805,3.47408265,121440.0,121430.0,0.00215176]
[1760081552010,3.24076265,121440.0,121430.0,0.00215176]
[1760081552212,3.49875433,121440.0,121430.0,0.00215176]
[1760081552897,6.24920433,121440.0,121430.0,0.00215176]
[1760081553099,6.24929633,121440.0,121430.0,0.00215176]
[1760081553306,5.46010833,121440.0,121430.0,0.00215176]
[1760081553652,5.42720533,121440.0,121430.0,0.00215176]
[1760081553893,6.57030833,121440.0,121430.0,0.00215176]
[1760081554122,6.43438333,121440.0,121430.0,0.00215176]
[1760081554352,5.49325933,121440.0,121430.0,0.00215176]
[1760081554567,5.48971833,121440.0,121430.0,0.00215176]
[1760081554780,4.22095833,121440.0,121430.0,0.00215176]
[1760081554986,3.62704433,121440.0,121430.0,0.00215176]
[1760081555219,3.51963686,121440.0,121430.0,0.00215176]
[1760081555457,3.79253686,121440.0,121430.0,0.00215176]
[1760081555684,3.61385786,121440.0,121430.0,0.00215176]
[1760081555928,2.91033786,121440.0,121430.0,0.00215176]
[1760081556193,1.16038592,121440.0,121430.0,0.00215176]
[1760081556416,0.42868,121440.0,121430.0,0.19826604]
[1760081556643,1.45375247,121440.0,121430.0,0.27826284]
[1760081556871,0.34,121440.0,121430.0,0.27826284]
[1760081557102,1.11087247,121440.0,121430.0,0.18179604]
[1760081557324,1.49399532,121440.0,121430.0,0.0170921]
[1760081557551,1.83739532,121440.0,121430.0,0.0170921]
[1760081557775,1.83759532,121440.0,121430.0,0.0170921]
[1760081558012,1.84526501,121440.0,121430.0,0.0170921]
[1760081558228,1.83759532,121440.0,121430.0,0.0170921]
[1760081558884,1.84546488,121440.0,121430.0,0.0170921]
[1760081559323,1.83779532,121440.0,121430.0,0.0170921]
[1760081559745,1.83779532,121440.0,121430.0,0.00215176]
[1760081559746,2.22265332,121440.0,121430.0,0.00215176]
[1760081559951,2.45645332,121440.0,121430.0,0.00215176]
[1760081560150,2.45645332,121440.0,121430.0,0.0170921]
[1760081560866,2.45645332,121440.0,121430.0,0.00215176]
[1760081561082,2.91591503,121440.0,121430.0,0.00215176]
[1760081561384,1.63641612,121440.0,121430.0,0.00215176]
[1760081561558,2.74366788,121440.0,121430.0,0.00215176]
[1760081561761,2.20914588,121440.0,121430.0,0.00215176]
[1760081563442,1.97534588,121440.0,121430.0,0.00215176]
[1760081563650,2.20910588,121440.0,121430.0,0.00215176]
[1760081564074,2.21673496,121440.0,121430.0,0.00215176]
[1760081564620,1.31315002,121440.0,121430.0,0.00215176]
[1760081564844,2.21673496,121440.0,121430.0,0.00215176]
[1760081565065,2.20906588,121440.0,121430.0,0.00215176]
[1760081565276,2.21673488,121440.0,121430.0,0.00215176]
[1760081565457,2.21673492,121440.0,121430.0,0.00215176]
[1760081565811,1.89729492,121440.0,121430.0,0.00215176]
[1760081566011,2.55969492,121440.0,121430.0,0.00215176]
[1760081568368,2.55965492,121440.0,121430.0,0.00215176]
[1760081569908,5.15482792,121440.0,121430.0,0.00215176]
[1760081570117,5.16425192,121440.0,121430.0,0.00215176]
[1760081570319,2.22839592,121440.0,121430.0,0.00215176]
[1760081570485,4.78633892,121440.0,121430.0,0.00215176]
[1760081570684,2.22839592,121440.0,121430.0,0.00215176]
[1760081570886,5.19800492,121440.0,121430.0,0.00215176]
[1760081571112,4.99695392,121440.0,121430.0,0.00215176]
[1760081571312,4.33588492,121440.0,121430.0,0.00215176]
[1760081571513,2.22835592,121440.0,121430.0,0.00215176]
[1760081571723,3.54947988,121440.0,121430.0,0.00215176]
[1760081571887,3.75093035,121440.0,121430.0,0.00215176]
[1760081572091,2.34709235,121440.0,121430.0,0.00215176]
[1760081572298,1.56603635,121440.0,121430.0,0.00215176]
[1760081572503,3.24931935,121440.0,121430.0,0.00215176]
[1760081572714,2.39524935,121440.0,121430.0,0.00215176]
[1760081572915,2.58482435,121440.0,121430.0,0.00215176]
[1760081573122,2.56948435,121440.0,121430.0,0.00215176]
[1760081577468,2.33588435,121440.0,121430.0,0.00215176]
[1760081577690,7.30774532,121440.0,121430.0,0.00215176]
[1760081577927,2.68006832,121440.0,121430.0,0.00215176]
[1760081578132,2.22827585,121440.0,121430.0,0.00215176]
[1760081578342,5.16001532,121440.0,121430.0,0.00215176]
[1760081578548,5.67031038,121440.0,121430.0,0.00215176]
[1760081578760,3.06315038,121440.0,121430.0,0.00215176]
[1760081578967,6.13532638,121440.0,121430.0,0.00215176]
[1760081579168,5.88130638,121440.0,121430.0,0.00215176]
[1760081579380,5.72761338,121440.0,121430.0,0.00215176]
[1760081579599,2.38108397,121440.0,121430.0,0.00215176]
[1760081579784,2.91279067,121440.0,121430.0,0.00215176]
[1760081580035,4.44104467,121440.0,121430.0,0.00215176]
[1760081580275,4.45213967,121440.0,121430.0,0.00215176]
[1760081580451,3.54791867,121440.0,121430.0,0.00215176]
[1760081580660,4.28574567,121440.0,121430.0,0.00215176]
[1760081580856,4.31458867,121440.0,121430.0,0.00215176]
[1760081581036,2.91275067,121440.0,121430.0,0.00215176]
[1760081581274,4.79714867,121440.0,121430.0,0.00215176]
[1760081581435,4.50972867,121440.0,121430.0,0.00215176]
[1760081581661,4.38922867,121440.0,121430.0,0.00215176]
[1760081581858,2.91275067,121440.0,121430.0,0.00215176]
[1760081582080,4.69481467,121440.0,121430.0,0.00215176]
[1760081582318,4.70409867,121440.0,121430.0,0.00215176]
[1760081582523,2.91275067,121440.0,121430.0,0.00215176]
[1760081582727,5.08529767,121440.0,121430.0,0.00215176]
[1760081582945,5.84164367,121440.0,121430.0,0.00215176]
[1760081583150,5.48809267,121440.0,121430.0,0.00215176]
[1760081583370,2.91275067,121440.0,121430.0,0.00215176]
[1760081583771,5.34583967,121440.0,121430.0,0.00215176]
[1760081583974,5.96056767,121440.0,121430.0,0.00215176]
[1760081584217,5.96124367,121440.0,121430.0,0.00215176]
[1760081584419,5.96041967,121440.0,121430.0,0.00215176]
[1760081584626,2.91275067,121440.0,121430.0,0.00215176]
[1760081584826,6.31928667,121440.0,121430.0,0.00215176]
[1760081584976,6.30932267,121440.0,121430.0,0.00215176]
[1760081585180,5.94666267,121440.0,121430.0,0.00215176]
[1760081585381,5.87602267,121440.0,121430.0,0.00215176]
[1760081585689,5.45148667,121440.0,121430.0,0.00215176]
[1760081585891,6.04676167,121440.0,121430.0,0.00215176]
[1760081586119,6.04794267,121440.0,121430.0,0.00215176]
[1760081586292,6.24301367,121440.0,121430.0,0.00215176]
[1760081586494,6.04064467,121440.0,121430.0,0.00215176]
[1760081586698,6.04084967,121440.0,121430.0,0.00215176]
[1760081586898,3.35765067,121440.0,121430.0,0.00215176]
[1760081587264,6.10225747,121440.0,121430.0,0.00215176]
[1760081587449,6.02226067,121440.0,121430.0,0.00215176]
[1760081587833,6.06410967,121440.0,121430.0,0.00215176]
[1760081588058,5.60693967,121440.0,121430.0,0.00215176]
[1760081588273,5.57657667,121440.0,121430.0,0.00215176]
[1760081588493,6.39669967,121440.0,121430.0,0.00215176]
[1760081588695,6.42136067,121440.0,121430.0,0.00215176]
[1760081588875,6.43158167,121440.0,121430.0,0.00215176]
[1760081589121,3.27189067,121440.0,121430.0,0.00215176]
[1760081589351,3.35761067,121440.0,121430.0,0.00215176]
[1760081589598,6.09984567,121440.0,121430.0,0.00215176]
[1760081589895,6.08679967,121440.0,121430.0,0.00215176]
[1760081590123,5.89844267,121440.0,121430.0,0.00215176]
[1760081590366,6.18654267,121440.0,121430.0,0.00215176]
[1760081590625,6.33824467,121440.0,121430.0,0.00215176]
[1760081590893,3.35761067,121440.0,121430.0,0.00215176]
[1760081591598,6.43767367,121440.0,121430.0,0.00215176]
[1760081591855,6.34206767,121440.0,121430.0,0.00215176]
[1760081592108,6.17243367,121440.0,121430.0,0.00215176]
[1760081592362,6.37557767,121440.0,121430.0,0.00215176]
[1760081592612,6.32981467,121440.0,121430.0,0.00215176]
[1760081592869,3.35757067,121440.0,121430.0,0.00215176]
[1760081593119,7.51372567,121440.0,121430.0,0.00215176]
[1760081593360,7.62210067,121440.0,121430.0,0.00215176]
[1760081593571,7.38378267,121440.0,121430.0,0.00215176]
[1760081593785,7.51240167,121440.0,121430.0,0.00215176]
[1760081594039,7.55163867,121440.0,121430.0,0.00215176]
[1760081594318,7.55452955,121440.0,121430.0,0.00215176]
[1760081594560,3.35757155,121440.0,121430.0,0.00215176]
[1760081594805,7.55109455,121440.0,121430.0,0.00215176]
[1760081595050,7.13493555,121440.0,121430.0,0.00215176]
[1760081595297,6.65594955,121440.0,121430.0,0.00215176]
[1760081595555,6.66975355,121440.0,121430.0,0.00215176]
[1760081595795,3.35753155,121440.0,121430.0,0.00215176]
[1760081596039,6.69609855,121440.0,121430.0,0.00215176]
[1760081596294,3.35753155,121440.0,121430.0,0.00215176]
[1760081596535,6.76594055,121440.0,121430.0,0.00215176]
[1760081596795,2.15255385,121440.0,121430.0,0.00215176]
[1760081597055,6.14142955,121440.0,121430.0,0.00215176]
[1760081597300,6.22759455,121440.0,121430.0,0.00215176]
[1760081597488,3.35753155,121440.0,121430.0,0.00215176]
[1760081597700,6.38110455,121440.0,121430.0,0.00215176]
[1760081598070,6.38073355,121440.0,121430.0,0.00215176]
[1760081598291,6.36870655,121440.0,121430.0,0.00215176]
[1760081598499,6.38256355,121440.0,121430.0,0.00215176]
[1760081598737,6.37867855,121440.0,121430.0,0.00215176]
[1760081598944,5.71705055,121440.0,121430.0,0.00215176]
[1760081599199,3.12417155,121440.0,121430.0,0.00215176]
[1760081599426,6.28759355,121440.0,121430.0,0.00215176]
[1760081599639,6.26775355,121440.0,121430.0,0.00215176]
[1760081599847,3.35749155,121440.0,121430.0,0.00215176]
[1760081600071,5.44193255,121440.0,121430.0,0.00215176]
[1760081600288,3.9680397,121440.0,121430.0,0.00215176]
[1760081600502,4.3626617,121440.0,121430.0,0.00215176]
[1760081600705,2.7550027,121440.0,121430.0,0.00215176]
[1760081601126,4.3778877,121440.0,121430.0,0.00215176]
[1760081601323,4.5191887,121440.0,121430.0,0.00215176]
[1760081601533,2.7550027,121440.0,121430.0,0.00215176]
[1760081601760,4.2525557,121440.0,121430.0,0.00215176]
[1760081601968,4.4317697,121440.0,121430.0,0.00215176]
[1760081602180,4.5408937,121440.0,121430.0,0.00215176]
[1760081602338,4.5283707,121440.0,121430.0,0.00215176]
[1760081602539,4.5262212,121440.0,121430.0,0.00215176]
[1760081602749,2.52169439,121440.0,121430.0,0.00215176]
[1760081602959,5.65740824,121440.0,121430.0,0.00215176]
[1760081603148,5.98743924,121440.0,121430.0,0.00215176]
[1760081603354,5.99687624,121440.0,121430.0,0.00215176]
[1760081603579,3.35746324,121440.0,121430.0,0.00215176]
[1760081603787,5.94898924,121440.0,121430.0,0.00215176]
[1760081603987,6.46749924,121440.0,121430.0,0.00215176]
[1760081604190,6.46693124,121440.0,121430.0,0.00215176]
[1760081604365,3.35746324,121440.0,121430.0,0.00215176]
[1760081604564,6.27545224,121440.0,121430.0,0.00215176]
[1760081604858,6.26434624,121440.0,121430.0,0.00215176]
[1760081605076,6.46002724,121440.0,121430.0,0.00215176]
[1760081605286,6.45289824,121440.0,121430.0,0.00215176]
[1760081605493,6.46303324,121440.0,121430.0,0.00215176]
[1760081605715,6.46185324,121440.0,121430.0,0.00215176]
[1760081605920,3.35746324,121440.0,121430.0,0.00215176]
[1760081606123,6.66154224,121440.0,121430.0,0.00215176]
[1760081606326,6.69264124,121440.0,121430.0,0.00215176]
[1760081606532,3.35746324,121440.0,121430.0,0.00215176]
[1760081606815,6.72236424,121440.0,121430.0,0.00215176]
[1760081607031,2.91256324,121440.0,121430.0,0.00215176]
[1760081607199,7.8578908,121440.0,121430.0,0.00215176]
[1760081607571,7.6246508,121440.0,121430.0,0.00215176]
[1760081607759,7.8580508,121440.0,121430.0,0.00215176]
[1760081607955,3.2303738,121440.0,121430.0,0.00215176]
[1760081608185,7.8580508,121440.0,121430.0,0.00215176]
[1760081608391,7.8590508,121440.0,121430.0,0.00215176]
[1760081608588,7.8600508,121440.0,121430.0,0.00215176]
[1760081608855,7.85904934,121440.0,121430.0,0.00215176]
[1760081609212,7.86004934,121440.0,121430.0,0.00215176]
[1760081610254,3.23237234,121440.0,121430.0,0.00215176]
[1760081610871,7.86004934,121440.0,121430.0,0.00215176]
[1760081611334,3.23237234,121440.0,121430.0,0.00215176]
[1760081611584,7.96964934,121440.0,121430.0,0.00215176]
[1760081611820,8.20300934,121440.0,121430.0,0.00215176]
[1760081612202,3.57533234,121440.0,121430.0,0.00215176]
[1760081612411,8.20300934,121440.0,121430.0,0.00215176]
[1760081612894,3.57533234,121440.0,121430.0,0.00215176]
[1760081613095,7.54096305,121440.0,121430.0,0.00215176]
[1760081613285,7.64983905,121440.0,121430.0,0.00215176]
[1760081613455,7.92149105,121440.0,121430.0,0.00215176]
[1760081613661,8.07100405,121440.0,121430.0,0.00215176]
[1760081613863,7.88591705,121440.0,121430.0,0.00215176]
[1760081614061,8.20312305,121440.0,121430.0,0.00215176]
[1760081614274,2.57024605,121440.0,121430.0,0.00215176]
[1760081614512,7.65814805,121440.0,121430.0,0.00215176]
[1760081614714,7.75563249,121440.0,121430.0,0.00215176]
[1760081614920,7.84539249,121440.0,121430.0,0.00215176]
[1760081615905,3.21771549,121440.0,121430.0,0.00215176]
[1760081616109,7.84539249,121440.0,121430.0,0.00215176]
[1760081616520,8.18539249,121440.0,121430.0,0.00215176]
[1760081616713,1.69061779,121440.0,121430.0,0.00215176]
[1760081616920,4.59872864,121440.0,121430.0,0.00215176]
[1760081617126,6.55208349,121440.0,121430.0,0.00215176]
[1760081617348,6.56221949,121440.0,121430.0,0.00215176]
[1760081617552,6.55224649,121440.0,121430.0,0.00215176]
[1760081617751,6.64599749,121440.0,121430.0,0.00215176]
[1760081617992,3.21463536,121440.0,121430.0,0.00215176]
[1760081618928,7.84235236,121440.0,121430.0,0.00215176]
[1760081619314,3.21467536,121440.0,121430.0,0.00215176]
[1760081619448,7.84235236,121440.0,121430.0,0.00215176]
[1760081620090,3.21467536,121440.0,121430.0,0.00215176]
[1760081620312,7.84235236,121440.0,121430.0,0.00215176]
[1760081620965,7.6506893,121440.0,121430.0,0.00215176]
[1760081621213,7.81537968,121440.0,121430.0,0.00215176]
[1760081621646,7.73235236,121440.0,121430.0,0.00215176]
[1760081621778,7.49903236,121440.0,121430.0,0.00215176]
[1760081622240,7.73231236,121440.0,121430.0,0.00215176]
[1760081623257,3.10463536,121440.0,121430.0,0.00215176]
[1760081623516,7.73231236,121440.0,121430.0,0.00215176]
[1760081624138,3.10463536,121440.0,121430.0,0.00215176]
[1760081624372,7.73231236,121440.0,121430.0,0.00215176]
[1760081624854,7.49903236,121440.0,121430.0,0.00215176]
[1760081625300,7.73227236,121440.0,121430.0,0.00215176]
[1760081625515,8.03227236,121440.0,121430.0,0.00215176]
[1760081625767,8.04994843,121440.0,121430.0,0.00215176]
[1760081625970,7.81670843,121440.0,121430.0,1e-08]
[1760081626195,8.21039523,121440.0,121430.0,1e-08]
[1760081626607,8.57960408,121440.0,121430.0,1e-08]
[1760081626810,7.87711524,121440.0,121430.0,1e-08]
[1760081627022,8.23246443,121440.0,121430.0,1e-08]
[1760081627219,8.83495328,121440.0,121430.0,1e-08]
[1760081627423,8.83395328,121440.0,121430.0,1e-08]
[1760081627847,8.83495328,121440.0,121430.0,1e-08]
[1760081628045,8.17179328,121440.0,121430.0,1e-08]
[1760081628255,8.57550443,121440.0,121430.0,1e-08]
[1760081628456,8.57450443,121440.0,121430.0,1e-08]
[1760081628665,8.57550443,121440.0,121430.0,1e-08]
[1760081628866,9.17799328,121440.0,121430.0,1e-08]
[1760081629361,3.94781035,121440.0,121430.0,1e-08]
[1760081629567,8.57548735,121440.0,121430.0,1e-08]
[1760081630446,8.55349815,121440.0,121430.0,1e-08]
[1760081631071,8.57548735,121440.0,121430.0,1e-08]
[1760081631520,9.1779762,121440.0,121430.0,1e-08]
[1760081631727,4.5502992,121440.0,121430.0,1e-08]
[1760081631985,9.1779762,121440.0,121430.0,1e-08]
[1760081632201,9.17030099,121440.0,121430.0,1e-08]
[1760081632412,9.17796202,121440.0,121430.0,1e-08]
[1760081632610,9.17796248,121440.0,121430.0,1e-08]
[1760081632841,4.55028548,121440.0,121430.0,1e-08]
[1760081633056,9.17796082,121440.0,121430.0,1e-08]
[1760081633477,4.55028382,121440.0,121430.0,1e-08]
[1760081633684,9.17796082,121440.0,121430.0,1e-08]
[1760081634328,9.18596082,121440.0,121430.0,1e-08]
[1760081634535,4.55824382,121440.0,121430.0,1e-08]
[1760081634740,9.18592082,121440.0,121430.0,1e-08]
[1760081634944,8.23022082,121440.0,121430.0,1e-08]
[1760081635156,9.23546082,121440.0,121430.0,1e-08]
[1760081635566,4.60778382,121440.0,121430.0,1e-08]
[1760081635780,8.23022082,121440.0,121430.0,1e-08]
[1760081635987,9.23546082,121440.0,121430.0,1e-08]
[1760081636816,8.21002556,121440.0,121430.0,1e-08]
[1760081637069,9.21526556,121440.0,121430.0,1e-08]
[1760081637249,9.12950556,121440.0,121430.0,1e-08]
[1760081637479,9.21526556,121440.0,121430.0,1e-08]
[1760081638100,4.58758856,121440.0,121430.0,1e-08]
[1760081638311,9.21526556,121440.0,121430.0,1e-08]
[1760081639298,6.03491049,121400.0,121390.0,0.000462]
[1760081639532,6.7471864,121400.0,121390.0,0.00096586]
[1760081639759,7.19944775,121400.0,121390.0,0.00096586]
[1760081640000,6.96608775,121400.0,121390.0,0.00302407]
[1760081640237,6.99235948,121400.0,121390.0,0.00302407]
[1760081640468,7.22571948,121400.0,121390.0,0.00302407]
[1760081641197,8.34914353,121400.0,121390.0,0.00302407]
[1760081641662,8.3618484,121400.0,121390.0,0.00302407]
[1760081641900,8.58250353,121400.0,121390.0,0.00302407]
[1760081642143,8.34914353,121400.0,121390.0,0.00302407]
[1760081642384,1.10475821,121390.0,121380.0,0.0004]
[1760081642613,7.77175109,121390.0,121380.0,0.0005513]
[1760081642834,3.14407409,121390.0,121380.0,0.0005513]
[1760081643074,7.77175109,121390.0,121380.0,0.0005513]
[1760081643299,7.83272368,121390.0,121380.0,0.0005513]
[1760081643527,7.59936368,121390.0,121380.0,0.0005513]
[1760081643745,7.83276368,121390.0,121380.0,0.0005513]
[1760081643987,3.20508668,121390.0,121380.0,0.0005513]
[1760081644226,7.8503856,121390.0,121380.0,0.0005513]
[1760081645350,3.2227086,121390.0,121380.0,0.0005513]
[1760081645785,8.2952856,121390.0,121380.0,0.0005513]
[1760081646394,9.6621293,121390.0,121380.0,0.0005513]
[1760081646576,9.68232456,121390.0,121380.0,0.0005513]
[1760081646943,9.45222692,121390.0,121380.0,0.0005513]
[1760081647153,9.83779074,121390.0,121380.0,1e-08]
[1760081647391,10.18095074,121390.0,121380.0,1e-08]
[1760081647608,10.26671074,121390.0,121380.0,1e-08]
[1760081648044,10.26671074,121390.0,121380.0,0.00051469]
[1760081648722,10.26871074,121390.0,121380.0,0.00051469]
[1760081648949,10.26771074,121390.0,121380.0,0.00051469]
[1760081649173,10.26871074,121390.0,121380.0,1e-08]
[1760081649433,5.43703226,121390.0,121380.0,1e-08]
[1760081649678,10.29806926,121390.0,121380.0,1e-08]
[1760081650182,10.06470926,121390.0,121380.0,1e-08]
[1760081650381,10.29806926,121390.0,121380.0,1e-08]
[1760081650580,10.06470926,121390.0,121380.0,1e-08]
[1760081650805,9.88064733,121390.0,121380.0,1e-08]
[1760081651043,5.25297033,121390.0,121380.0,1e-08]
[1760081651252,9.92484019,121390.0,121380.0,1e-08]
[1760081651666,5.29716319,121390.0,121380.0,1e-08]
[1760081651870,9.92484019,121390.0,121380.0,1e-08]
[1760081652232,9.46664167,121390.0,121380.0,1e-08]
[1760081652506,9.89556167,121390.0,121380.0,1e-08]
[1760081652686,5.26788467,121390.0,121380.0,1e-08]
[1760081652893,9.89556167,121390.0,121380.0,1e-08]
[1760081653307,8.89012167,121390.0,121380.0,1e-08]
[1760081653544,9.66220167,121390.0,121380.0,1e-08]
[1760081653750,9.89556167,121390.0,121380.0,1e-08]
[1760081654102,4.95302464,121390.0,121380.0,1e-08]
[1760081654302,9.58070164,121390.0,121380.0,1e-08]
[1760081654528,4.95302464,121390.0,121380.0,1e-08]
[1760081654726,9.58070164,121390.0,121380.0,1e-08]
[1760081655373,9.34746164,121390.0,121380.0,1e-08]
[1760081655812,8.57526164,121390.0,121380.0,1e-08]
[1760081655961,9.58082164,121390.0,121380.0,1e-08]
[1760081656782,4.95314464,121390.0,121380.0,1e-08]
[1760081657010,9.58082164,121390.0,121380.0,1e-08]
[1760081657218,8.57526164,121390.0,121380.0,1e-08]
[1760081657448,9.34746164,121390.0,121380.0,1e-08]
[1760081657654,9.58078164,121390.0,121380.0,1e-08]
[1760081657858,9.66077844,121390.0,121380.0,1e-08]
[1760081658061,4.95310464,121390.0,121380.0,1e-08]
[1760081658269,9.58078164,121390.0,121380.0,1e-08]
[1760081658484,4.95310464,121390.0,121380.0,1e-08]
[1760081658704,9.58078164,121390.0,121380.0,1e-08]
[1760081659341,9.6249745,121390.0,121380.0,1e-08]
[1760081659557,4.9972975,121390.0,121380.0,1e-08]
[1760081659782,9.6249745,121390.0,121380.0,1e-08]
[1760081660019,9.59561711,121390.0,121380.0,1e-08]
[1760081660236,9.62497161,121390.0,121380.0,1e-08]
[1760081660443,9.60361711,121390.0,121380.0,1e-08]
[1760081660597,4.97594011,121390.0,121380.0,1e-08]
[1760081660803,9.60361711,121390.0,121380.0,1e-08]
[1760081661600,4.74262011,121390.0,121380.0,1e-08]
[1760081661904,6.65672901,121390.0,121380.0,1e-08]
[1760081662110,9.37029711,121390.0,121380.0,1e-08]
[1760081662464,9.60357711,121390.0,121380.0,1e-08]
[1760081663285,9.59592052,121390.0,121380.0,1e-08]
[1760081663497,9.3500938,121390.0,121380.0,1e-08]
[1760081663718,4.9556968,121390.0,121380.0,1e-08]
[1760081663926,9.5833738,121390.0,121380.0,1e-08]
[1760081664135,4.9556968,121390.0,121380.0,1e-08]
[1760081664364,5.57266033,121380.0,121370.0,0.0004]
[1760081664575,8.68725516,121380.0,121370.0,0.00045031]
[1760081665206,8.69055806,121380.0,121370.0,0.00045031]
[1760081665595,8.74008806,121380.0,121370.0,0.00045031]
[1760081666045,6.02751996,121380.0,121370.0,0.00045031]
[1760081666283,8.74108806,121380.0,121370.0,0.00045031]
[1760081666506,4.06934547,121380.0,121370.0,0.00045031]
[1760081666727,8.69702247,121380.0,121370.0,0.00045031]
[1760081667491,8.36374248,121380.0,121370.0,0.00045031]
[1760081667525,8.69702247,121380.0,121370.0,0.00045031]
[1760081667981,8.46374247,121380.0,121370.0,0.00045031]
[1760081668129,8.69702247,121380.0,121370.0,0.00045031]
[1760081668348,8.75594628,121380.0,121370.0,0.00045031]
[1760081669184,4.12826928,121380.0,121370.0,0.00045031]
[1760081669392,8.75594628,121380.0,121370.0,0.00045031]
[1760081669603,4.12826928,121380.0,121370.0,0.00045031]
[1760081670025,8.75594628,121380.0,121370.0,0.00096505]
[1760081670231,8.52266628,121380.0,121370.0,1e-08]
[1760081670543,4.14846454,121380.0,121370.0,1e-08]
[1760081670737,8.77614154,121380.0,121370.0,1e-08]
[1760081671349,5.47267391,121370.0,121360.0,0.0004]
[1760081671524,3.68224615,121370.0,121360.0,0.00045041]
[1760081671701,8.54320315,121370.0,121360.0,0.00045041]
[1760081672439,3.97444996,121370.0,121360.0,0.00045041]
[1760081672645,8.60643001,121370.0,121360.0,0.00045041]
[1760081672854,7.25064596,121370.0,121360.0,0.00045041]
[1760081673234,2.62299387,121370.0,121360.0,0.00045041]
[1760081673435,7.25067087,121370.0,121360.0,0.00045041]
[1760081674256,7.35067086,121370.0,121360.0,0.00045041]
[1760081675055,2.72299386,121370.0,121360.0,0.00045041]
[1760081675262,7.35067086,121370.0,121360.0,0.00045041]
[1760081675469,2.72299386,121370.0,121360.0,0.00045041]
[1760081675675,7.35067086,121370.0,121360.0,0.00045041]
[1760081676921,7.35067086,121370.0,121360.0,0.00096522]
[1760081677338,3.49527386,121370.0,121360.0,0.00096522]
[1760081677543,8.02295087,121370.0,121360.0,0.00096522]
[1760081677747,8.12295086,121370.0,121360.0,0.00096522]
[1760081679228,8.12295086,121370.0,121360.0,0.00096522]
[1760081680397,3.43635005,121370.0,121360.0,0.00096522]
[1760081680639,7.05846705,121370.0,121360.0,0.00096522]
[1760081680858,7.83074705,121370.0,121360.0,0.00096522]
[1760081681063,8.06402705,121370.0,121360.0,0.00096522]
[1760081681468,3.39479488,121370.0,121360.0,0.00096522]
[1760081681684,3.38059489,121370.0,121360.0,0.00096522]
[1760081682017,6.75148783,121370.0,121360.0,0.00096522]
[1760081682217,8.10827188,121370.0,121360.0,0.00096522]
[1760081682698,3.48059488,121370.0,121360.0,0.00096522]
[1760081682902,8.10827188,121370.0,121360.0,0.00096522]
[1760081683327,8.00827189,121370.0,121360.0,0.00096522]
[1760081683537,3.48059488,121370.0,121360.0,0.00096522]
[1760081683744,2.66003223,121370.0,121360.0,0.00096522]
[1760081683949,4.50100542,121370.0,121360.0,0.00096522]
[1760081684152,4.90466942,121370.0,121360.0,0.00096522]
[1760081684361,3.56670742,121370.0,121360.0,0.00096522]
[1760081684569,2.19076042,121370.0,121360.0,0.00096522]
[1760081684788,4.62199742,121370.0,121360.0,0.00096522]